[Event "Titled Tuesday Blitz July 11 Late 2023"]
[White "Veiga, Jose Francisco R P Neves"]
[Black "Taranenko, Evgueniy"]
[WhiteFideId "1930087"]
[BlackFideId "14122138"]
[WhiteElo "2601"]
[BlackElo "2437"]
[Result "1-0"]
[Round "7"]
[TimeControl "180+2"]
[Date "2023.07.11"]
[WhiteClock "0:00:19"]
[BlackClock "0:00:25"]
[Board "73"]

1. e4 {[%clk 0:03:00]}  e6 {[%clk 0:02:59]} 2. b3 {[%clk 0:03:00]}  c5 {[%clk 0:02:59]} 3. Bb2 {[%clk 0:02:59]}  Nc6 {[%clk 0:03:00]} 4. Nf3 {[%clk 0:02:59]}  Nf6 {[%clk 0:03:00]} 5. Nc3 {[%clk 0:02:56]}  d5 {[%clk 0:02:59]} 6. exd5 {[%clk 0:02:55]}  exd5 {[%clk 0:02:59]} 7. d4 {[%clk 0:02:55]}  cxd4 {[%clk 0:02:50]} 8. Nxd4 {[%clk 0:02:56]}  Bb4 {[%clk 0:02:50]} 9. Qe2+ {[%clk 0:02:54]}  Qe7 {[%clk 0:02:44]} 10. Qxe7+ {[%clk 0:02:54]}  Kxe7 {[%clk 0:02:44]} 11. O-O-O {[%clk 0:02:53]}  Be6 {[%clk 0:02:35]} 12. Bb5 {[%clk 0:02:49]}  Rac8 {[%clk 0:02:30]} 13. Nce2 {[%clk 0:02:39]}  Ne4 {[%clk 0:02:25]} 14. Rhf1 {[%clk 0:02:25]}  Nxd4 {[%clk 0:02:02]} 15. Bxd4 {[%clk 0:02:18]}  Bf5 {[%clk 0:01:41]} 16. Bd3 {[%clk 0:02:13]}  Be6 {[%clk 0:01:26]} 17. Kb2 {[%clk 0:02:10]}  Nc5 {[%clk 0:01:21]} 18. Nf4 {[%clk 0:02:02]}  Nxd3+ {[%clk 0:01:20]} 19. Nxd3 {[%clk 0:02:01]}  Bd6 {[%clk 0:01:19]} 20. g3 {[%clk 0:01:57]}  f6 {[%clk 0:01:11]} 21. Bxa7 {[%clk 0:01:56]}  Rc6 {[%clk 0:00:55]} 22. Bd4 {[%clk 0:01:52]}  Bf5 {[%clk 0:00:54]} 23. c3 {[%clk 0:01:52]}  Ra8 {[%clk 0:00:50]} 24. Rfe1+ {[%clk 0:01:51]}  Kf7 {[%clk 0:00:49]} 25. a4 {[%clk 0:01:50]}  Rca6 {[%clk 0:00:36]} 26. f3 {[%clk 0:01:39]}  b5 {[%clk 0:00:30]} 27. Nc5 {[%clk 0:01:27]}  Rc6 {[%clk 0:00:20]} 28. axb5 {[%clk 0:01:08]}  Rxc5 {[%clk 0:00:20]} 29. Bxc5 {[%clk 0:01:08]}  Bxc5 {[%clk 0:00:21]} 30. Ra1 {[%clk 0:01:08]}  Rb8 {[%clk 0:00:19]} 31. Ra5 {[%clk 0:01:03]}  d4 {[%clk 0:00:19]} 32. c4 {[%clk 0:01:02]}  Bb4 {[%clk 0:00:20]} 33. Ra7+ {[%clk 0:01:02]}  Kg6 {[%clk 0:00:20]} 34. Rd1 {[%clk 0:00:50]}  Bc3+ {[%clk 0:00:20]} 35. Kc1 {[%clk 0:00:50]}  Re8 {[%clk 0:00:18]} 36. g4 {[%clk 0:00:45]}  Be6 {[%clk 0:00:19]} 37. b6 {[%clk 0:00:42]}  Rb8 {[%clk 0:00:18]} 38. b7 {[%clk 0:00:39]}  Kg5 {[%clk 0:00:19]} 39. Kc2 {[%clk 0:00:38]}  Kf4 {[%clk 0:00:18]} 40. Rd3 {[%clk 0:00:32]}  Bf7 {[%clk 0:00:18]} 41. Rxc3 {[%clk 0:00:31]}  dxc3 {[%clk 0:00:18]} 42. Kxc3 {[%clk 0:00:32]}  Kxf3 {[%clk 0:00:19]} 43. b4 {[%clk 0:00:29]}  Kxg4 {[%clk 0:00:19]} 44. b5 {[%clk 0:00:29]}  Kf4 {[%clk 0:00:19]} 45. c5 {[%clk 0:00:29]}  Bd5 {[%clk 0:00:18]} 46. c6 {[%clk 0:00:29]}  Ke5 {[%clk 0:00:18]} 47. c7 {[%clk 0:00:29]}  Rxb7 {[%clk 0:00:18]} 48. b6 {[%clk 0:00:24]}  Rxb6 {[%clk 0:00:17]} 49. c8=Q {[%clk 0:00:23]}  Rc6+ {[%clk 0:00:18]} 50. Qxc6 {[%clk 0:00:24]}  Bxc6 {[%clk 0:00:18]} 51. Rxg7 {[%clk 0:00:24]}  Be4 {[%clk 0:00:19]} 52. Kd2 {[%clk 0:00:22]}  Bg6 {[%clk 0:00:20]} 53. Ke3 {[%clk 0:00:22]}  Kf5 {[%clk 0:00:20]} 54. Kf3 {[%clk 0:00:21]}  Kg5 {[%clk 0:00:20]} 55. Ra7 {[%clk 0:00:20]}  f5 {[%clk 0:00:21]} 56. Kg3 {[%clk 0:00:20]}  Kf6 {[%clk 0:00:21]} 57. Kf4 {[%clk 0:00:19]}  Ke6 {[%clk 0:00:21]} 58. h4 {[%clk 0:00:19]}  Kf6 {[%clk 0:00:21]} 59. Ra6+ {[%clk 0:00:20]}  Kg7 {[%clk 0:00:21]} 60. Kg5 {[%clk 0:00:20]}  h6+ {[%clk 0:00:21]} 61. Kf4 {[%clk 0:00:21]}  Kf7 {[%clk 0:00:21]} 62. Ke5 {[%clk 0:00:20]}  Kg7 {[%clk 0:00:22]} 63. Ra7+ {[%clk 0:00:20]}  Kf8 {[%clk 0:00:22]} 64. Kf6 {[%clk 0:00:20]}  Be8 {[%clk 0:00:21]} 65. Kxf5 {[%clk 0:00:20]}  h5 {[%clk 0:00:22]} 66. Kf6 {[%clk 0:00:20]}  Kg8 {[%clk 0:00:22]} 67. Ra8 {[%clk 0:00:21]}  Kf8 {[%clk 0:00:22]} 68. Rb8 {[%clk 0:00:20]}  Kg8 {[%clk 0:00:23]} 69. Rxe8+ {[%clk 0:00:21]}  Kh7 {[%clk 0:00:24]} 70. Rd8 {[%clk 0:00:19]}  Kh6 {[%clk 0:00:25]} 71. Rh8# {[%clk 0:00:19]} 1-0


[Site "https://www.chess.com"]

[Event "Titled Tuesday Blitz July 11 Late 2023"]
[White "Karttunen, Mika"]
[Black "Rodriguez Fontecha, Marcos"]
[WhiteFideId "502081"]
[BlackFideId "2256576"]
[WhiteElo "2553"]
[BlackElo "2423"]
[Result "1-0"]
[Round "7"]
[TimeControl "180+2"]
[Date "2023.07.11"]
[WhiteClock "0:00:27"]
[BlackClock "0:00:02"]
[Board "74"]

1. c4 {[%clk 0:03:00]}  e5 {[%clk 0:02:58]} 2. Nc3 {[%clk 0:03:00]}  Nc6 {[%clk 0:02:58]} 3. Nf3 {[%clk 0:03:00]}  g6 {[%clk 0:02:58]} 4. d3 {[%clk 0:02:59]}  Bg7 {[%clk 0:02:58]} 5. g3 {[%clk 0:02:58]}  d6 {[%clk 0:02:58]} 6. Bg2 {[%clk 0:02:59]}  Nge7 {[%clk 0:02:58]} 7. O-O {[%clk 0:02:58]}  h6 {[%clk 0:02:58]} 8. Rb1 {[%clk 0:02:58]}  Be6 {[%clk 0:02:57]} 9. b4 {[%clk 0:02:57]}  Qd7 {[%clk 0:02:58]} 10. b5 {[%clk 0:02:56]}  Nd8 {[%clk 0:02:58]} 11. Re1 {[%clk 0:02:49]}  O-O {[%clk 0:02:58]} 12. a4 {[%clk 0:02:42]}  Bh3 {[%clk 0:02:52]} 13. Bh1 {[%clk 0:02:42]}  f5 {[%clk 0:02:39]} 14. Nd5 {[%clk 0:02:09]}  Ne6 {[%clk 0:02:21]} 15. Nh4 {[%clk 0:02:05]}  Kh7 {[%clk 0:02:13]} 16. Nxe7 {[%clk 0:02:05]}  Qxe7 {[%clk 0:02:13]} 17. Bxb7 {[%clk 0:02:05]}  Rad8 {[%clk 0:02:04]} 18. Be3 {[%clk 0:01:52]}  g5 {[%clk 0:01:56]} 19. Ng2 {[%clk 0:01:51]}  f4 {[%clk 0:01:17]} 20. Bxa7 {[%clk 0:01:50]}  Qf6 {[%clk 0:00:59]} 21. a5 {[%clk 0:01:33]}  Ra8 {[%clk 0:00:44]} 22. Bxa8 {[%clk 0:01:19]}  Rxa8 {[%clk 0:00:44]} 23. b6 {[%clk 0:01:19]}  c5 {[%clk 0:00:38]} 24. b7 {[%clk 0:01:07]}  Rf8 {[%clk 0:00:21]} 25. Rf1 {[%clk 0:01:07]}  Nd4 {[%clk 0:00:18]} 26. f3 {[%clk 0:01:01]}  fxg3 {[%clk 0:00:13]} 27. hxg3 {[%clk 0:01:00]}  Nf5 {[%clk 0:00:13]} 28. g4 {[%clk 0:00:36]}  Bxg2 {[%clk 0:00:11]} 29. gxf5 {[%clk 0:00:37]}  Bxf1 {[%clk 0:00:09]} 30. Qxf1 {[%clk 0:00:35]}  e4 {[%clk 0:00:09]} 31. dxe4 {[%clk 0:00:32]}  Qd4+ {[%clk 0:00:08]} 32. Kg2 {[%clk 0:00:30]}  g4 {[%clk 0:00:08]} 33. b8=Q {[%clk 0:00:30]}  gxf3+ {[%clk 0:00:08]} 34. Qxf3 {[%clk 0:00:29]}  Rf7 {[%clk 0:00:02]} 35. Rb7 {[%clk 0:00:27]} 1-0


[Site "https://www.chess.com"]

[Event "Titled Tuesday Blitz July 11 Late 2023"]
[White "Domingo Nunez, Ruben"]
[Black "Melikhov, Evgeny V."]
[WhiteFideId "22245570"]
[BlackFideId "4122046"]
[WhiteElo "2553"]
[BlackElo "2418"]
[Result "1-0"]
[Round "7"]
[TimeControl "180+2"]
[Date "2023.07.11"]
[WhiteClock "0:00:44"]
[BlackClock "0:00:02"]
[Board "75"]

1. Nf3 {[%clk 0:03:00]}  f5 {[%clk 0:02:59]} 2. g3 {[%clk 0:02:58]}  Nf6 {[%clk 0:02:59]} 3. Bg2 {[%clk 0:02:59]}  g6 {[%clk 0:02:59]} 4. c4 {[%clk 0:02:58]}  d6 {[%clk 0:02:58]} 5. d4 {[%clk 0:02:58]}  Bg7 {[%clk 0:02:58]} 6. Nc3 {[%clk 0:02:58]}  O-O {[%clk 0:02:58]} 7. O-O {[%clk 0:02:58]}  Qe8 {[%clk 0:02:55]} 8. d5 {[%clk 0:02:57]}  a5 {[%clk 0:02:54]} 9. Be3 {[%clk 0:02:56]}  Na6 {[%clk 0:02:52]} 10. Bd4 {[%clk 0:02:55]}  c6 {[%clk 0:02:44]} 11. e4 {[%clk 0:02:45]}  e5 {[%clk 0:02:40]} 12. dxe6 {[%clk 0:02:42]}  Bxe6 {[%clk 0:02:40]} 13. exf5 {[%clk 0:02:39]}  Bxc4 {[%clk 0:02:39]} 14. Re1 {[%clk 0:02:38]}  Qd7 {[%clk 0:02:25]} 15. fxg6 {[%clk 0:02:34]}  hxg6 {[%clk 0:02:25]} 16. Na4 {[%clk 0:02:32]}  Rae8 {[%clk 0:02:22]} 17. Qc2 {[%clk 0:02:32]}  Bd5 {[%clk 0:01:52]} 18. Nb6 {[%clk 0:02:29]}  Qf5 {[%clk 0:01:51]} 19. Qxf5 {[%clk 0:02:17]}  gxf5 {[%clk 0:01:52]} 20. Nxd5 {[%clk 0:02:01]}  Nxd5 {[%clk 0:01:51]} 21. Bxg7 {[%clk 0:02:02]}  Kxg7 {[%clk 0:01:51]} 22. Nd4 {[%clk 0:02:03]}  Kf6 {[%clk 0:01:48]} 23. Bxd5 {[%clk 0:01:58]}  cxd5 {[%clk 0:01:48]} 24. Red1 {[%clk 0:01:58]}  Re5 {[%clk 0:01:25]} 25. Rac1 {[%clk 0:01:55]}  Nc5 {[%clk 0:01:23]} 26. Nb5 {[%clk 0:01:52]}  Ke7 {[%clk 0:01:17]} 27. Nc7 {[%clk 0:01:38]}  Re2 {[%clk 0:01:12]} 28. Nxd5+ {[%clk 0:01:38]}  Kf7 {[%clk 0:00:57]} 29. Ne3 {[%clk 0:01:25]}  Ne4 {[%clk 0:00:48]} 30. Nxf5 {[%clk 0:01:24]}  Kg6 {[%clk 0:00:39]} 31. Nh4+ {[%clk 0:01:19]}  Kh5 {[%clk 0:00:39]} 32. f3 {[%clk 0:01:02]}  Nd2 {[%clk 0:00:35]} 33. Rc3 {[%clk 0:01:01]}  Rfe8 {[%clk 0:00:19]} 34. b3 {[%clk 0:00:51]}  b5 {[%clk 0:00:16]} 35. Rd3 {[%clk 0:00:51]}  Re1+ {[%clk 0:00:15]} 36. Rxe1 {[%clk 0:00:51]}  Rxe1+ {[%clk 0:00:15]} 37. Kf2 {[%clk 0:00:52]}  Rh1 {[%clk 0:00:03]} 38. Rd5+ {[%clk 0:00:49]}  Kh6 {[%clk 0:00:02]} 39. Rxd6+ {[%clk 0:00:49]}  Kg7 {[%clk 0:00:02]} 40. Rxd2 {[%clk 0:00:46]}  Rxh2+ {[%clk 0:00:02]} 41. Ke3 {[%clk 0:00:46]}  Rh1 {[%clk 0:00:03]} 42. Rd5 {[%clk 0:00:44]}  Kf6 {[%clk 0:00:02]} 43. Rxb5 {[%clk 0:00:44]} 1-0


[Site "https://www.chess.com"]

[Event "Titled Tuesday Blitz July 11 Late 2023"]
[White "Toktomushev, Teimur"]
[Black "Moral Garcia, Serafin"]
[WhiteFideId "14176726"]
[BlackFideId "2201925"]
[WhiteElo "2400"]
[BlackElo "2543"]
[Result "0-1"]
[Round "7"]
[TimeControl "180+2"]
[Date "2023.07.11"]
[WhiteClock "0:00:00"]
[BlackClock "0:00:17"]
[Board "77"]

1. d4 {[%clk 0:03:00]}  Nf6 {[%clk 0:02:59]} 2. c4 {[%clk 0:03:01]}  g6 {[%clk 0:02:57]} 3. Nc3 {[%clk 0:03:01]}  d5 {[%clk 0:02:58]} 4. cxd5 {[%clk 0:03:02]}  Nxd5 {[%clk 0:02:58]} 5. e4 {[%clk 0:03:03]}  Nxc3 {[%clk 0:02:57]} 6. bxc3 {[%clk 0:03:04]}  Bg7 {[%clk 0:02:57]} 7. Be3 {[%clk 0:03:05]}  c5 {[%clk 0:02:55]} 8. Qd2 {[%clk 0:03:05]}  cxd4 {[%clk 0:02:50]} 9. cxd4 {[%clk 0:03:06]}  Nc6 {[%clk 0:02:50]} 10. Nf3 {[%clk 0:03:04]}  Bg4 {[%clk 0:02:47]} 11. Rd1 {[%clk 0:03:03]}  O-O {[%clk 0:02:46]} 12. Be2 {[%clk 0:03:03]}  Qa5 {[%clk 0:02:43]} 13. Qxa5 {[%clk 0:02:35]}  Nxa5 {[%clk 0:02:42]} 14. O-O {[%clk 0:02:35]}  Rfd8 {[%clk 0:02:40]} 15. d5 {[%clk 0:02:16]}  b6 {[%clk 0:02:38]} 16. h3 {[%clk 0:01:44]}  Bxf3 {[%clk 0:02:35]} 17. gxf3 {[%clk 0:01:45]}  Rac8 {[%clk 0:02:34]} 18. Rc1 {[%clk 0:01:45]}  Bb2 {[%clk 0:02:28]} 19. Rxc8 {[%clk 0:01:42]}  Rxc8 {[%clk 0:02:28]} 20. f4 {[%clk 0:01:29]}  Nc4 {[%clk 0:02:26]} 21. Bxc4 {[%clk 0:01:16]}  Rxc4 {[%clk 0:02:25]} 22. e5 {[%clk 0:01:16]}  Kf8 {[%clk 0:02:21]} 23. Rd1 {[%clk 0:00:42]}  Ke8 {[%clk 0:02:20]} 24. d6 {[%clk 0:00:29]}  exd6 {[%clk 0:02:13]} 25. Rxd6 {[%clk 0:00:27]}  Ba3 {[%clk 0:02:08]} 26. Rd3 {[%clk 0:00:26]}  Be7 {[%clk 0:02:04]} 27. Kg2 {[%clk 0:00:15]}  Ra4 {[%clk 0:01:58]} 28. Rd2 {[%clk 0:00:08]}  b5 {[%clk 0:01:45]} 29. Rc2 {[%clk 0:00:07]}  Kd7 {[%clk 0:01:44]} 30. Rd2+ {[%clk 0:00:06]}  Ke6 {[%clk 0:01:35]} 31. Rc2 {[%clk 0:00:06]}  Ra6 {[%clk 0:01:13]} 32. Kf3 {[%clk 0:00:03]}  Bd8 {[%clk 0:01:07]} 33. Ke4 {[%clk 0:00:03]}  Ra4+ {[%clk 0:01:02]} 34. Kd3 {[%clk 0:00:03]}  a5 {[%clk 0:00:55]} 35. Rc6+ {[%clk 0:00:02]}  Kd7 {[%clk 0:00:53]} 36. Rd6+ {[%clk 0:00:03]}  Ke8 {[%clk 0:00:52]} 37. Rd5 {[%clk 0:00:03]}  b4 {[%clk 0:00:47]} 38. Rb5 {[%clk 0:00:01]}  Rxa2 {[%clk 0:00:46]} 39. Rb8 {[%clk 0:00:01]}  Kd7 {[%clk 0:00:46]} 40. Rb7+ {[%clk 0:00:01]}  Ke6 {[%clk 0:00:43]} 41. Rb8 {[%clk 0:00:01]}  Be7 {[%clk 0:00:41]} 42. Rb6+ {[%clk 0:00:02]}  Kd7 {[%clk 0:00:38]} 43. Rb7+ {[%clk 0:00:02]}  Kd8 {[%clk 0:00:35]} 44. Bb6+ {[%clk 0:00:02]}  Ke8 {[%clk 0:00:36]} 45. Rb8+ {[%clk 0:00:02]}  Kd7 {[%clk 0:00:36]} 46. Ra8 {[%clk 0:00:02]}  a4 {[%clk 0:00:36]} 47. Ra7+ {[%clk 0:00:02]}  Ke6 {[%clk 0:00:35]} 48. Be3 {[%clk 0:00:01]}  b3 {[%clk 0:00:32]} 49. Ra6+ {[%clk 0:00:01]}  Kd7 {[%clk 0:00:28]} 50. Ra7+ {[%clk 0:00:02]}  Ke6 {[%clk 0:00:22]} 51. Ra6+ {[%clk 0:00:03]}  Kf5 {[%clk 0:00:21]} 52. Ra7 {[%clk 0:00:03]}  b2 {[%clk 0:00:22]} 53. Kc2 {[%clk 0:00:03]}  Bh4 {[%clk 0:00:19]} 54. Rxf7+ {[%clk 0:00:02]}  Ke6 {[%clk 0:00:19]} 55. Rb7 {[%clk 0:00:02]}  a3 {[%clk 0:00:19]} 56. Rb6+ {[%clk 0:00:02]}  Kd5 {[%clk 0:00:19]} 57. Rb5+ {[%clk 0:00:02]}  Ke4 {[%clk 0:00:19]} 58. e6 {[%clk 0:00:02]}  Ra1 {[%clk 0:00:19]} 59. Re5+ {[%clk 0:00:01]}  Kf3 {[%clk 0:00:19]} 60. Rb5 {[%clk 0:00:02]}  Re1 {[%clk 0:00:18]} 61. Bd4 {[%clk 0:00:01]}  Rc1+ {[%clk 0:00:16]} 62. Kd2 {[%clk 0:00:01]}  b1=Q {[%clk 0:00:16]} 63. Rxb1 {[%clk 0:00:00]}  Rxb1 {[%clk 0:00:17]} 0-1


[Site "https://www.chess.com"]

[Event "Titled Tuesday Blitz July 11 Late 2023"]
[White "Graif, William"]
[Black "Krzywda, Andrzej"]
[WhiteFideId "2609835"]
[BlackFideId "1114565"]
[WhiteElo "2542"]
[BlackElo "2397"]
[Result "0-1"]
[Round "7"]
[TimeControl "180+2"]
[Date "2023.07.11"]
[WhiteClock "0:00:00"]
[BlackClock "0:00:19"]
[Board "78"]

1. e4 {[%clk 0:03:00]}  e5 {[%clk 0:02:58]} 2. Nf3 {[%clk 0:03:00]}  Nf6 {[%clk 0:02:58]} 3. d4 {[%clk 0:02:56]}  Nxe4 {[%clk 0:02:55]} 4. dxe5 {[%clk 0:02:55]}  d5 {[%clk 0:02:55]} 5. Nbd2 {[%clk 0:02:54]}  Qd7 {[%clk 0:02:55]} 6. Bd3 {[%clk 0:02:45]}  Nc5 {[%clk 0:02:54]} 7. Be2 {[%clk 0:02:42]}  Ne6 {[%clk 0:02:54]} 8. O-O {[%clk 0:02:38]}  c5 {[%clk 0:02:55]} 9. c4 {[%clk 0:02:28]}  d4 {[%clk 0:02:43]} 10. Ne4 {[%clk 0:02:28]}  Be7 {[%clk 0:02:30]} 11. Ne1 {[%clk 0:02:00]}  O-O {[%clk 0:02:08]} 12. f4 {[%clk 0:01:57]}  f5 {[%clk 0:02:08]} 13. exf6 {[%clk 0:01:49]}  Bxf6 {[%clk 0:02:08]} 14. f5 {[%clk 0:01:37]}  Nd8 {[%clk 0:01:56]} 15. Nxc5 {[%clk 0:01:16]}  Qc7 {[%clk 0:01:55]} 16. Ned3 {[%clk 0:01:11]}  Be7 {[%clk 0:01:47]} 17. Bf4 {[%clk 0:01:08]}  Qb6 {[%clk 0:01:40]} 18. Na4 {[%clk 0:00:53]}  Qa5 {[%clk 0:01:31]} 19. Bd2 {[%clk 0:00:40]}  Qc7 {[%clk 0:01:24]} 20. c5 {[%clk 0:00:25]}  Bxf5 {[%clk 0:01:09]} 21. Rc1 {[%clk 0:00:26]}  Nbc6 {[%clk 0:01:08]} 22. Kh1 {[%clk 0:00:22]}  Ne6 {[%clk 0:01:05]} 23. b4 {[%clk 0:00:21]}  Kh8 {[%clk 0:01:02]} 24. b5 {[%clk 0:00:20]}  Ne5 {[%clk 0:00:58]} 25. Bf4 {[%clk 0:00:17]}  Nxf4 {[%clk 0:00:57]} 26. Nxf4 {[%clk 0:00:17]}  Bg5 {[%clk 0:00:54]} 27. Rb1 {[%clk 0:00:13]}  Bxb1 {[%clk 0:00:53]} 28. Qxb1 {[%clk 0:00:12]}  Rxf4 {[%clk 0:00:52]} 29. Rxf4 {[%clk 0:00:12]}  Bxf4 {[%clk 0:00:53]} 30. Qf5 {[%clk 0:00:12]}  Ng6 {[%clk 0:00:41]} 31. g3 {[%clk 0:00:09]}  Qe5 {[%clk 0:00:33]} 32. Qd3 {[%clk 0:00:05]}  Be3 {[%clk 0:00:30]} 33. Bf3 {[%clk 0:00:05]}  Rf8 {[%clk 0:00:29]} 34. Bxb7 {[%clk 0:00:00]}  Qf6 {[%clk 0:00:19]} 0-1


[Site "https://www.chess.com"]

[Event "Titled Tuesday Blitz July 11 Late 2023"]
[White "Harriott, Tyrell"]
[Black "Palencia Morales, Wilson Guillermo"]
[WhiteFideId "2086484"]
[BlackFideId "4401859"]
[WhiteElo "2392"]
[BlackElo "2531"]
[Result "1-0"]
[Round "7"]
[TimeControl "180+2"]
[Date "2023.07.11"]
[WhiteClock "0:00:12"]
[BlackClock "0:00:05"]
[Board "79"]

1. d4 {[%clk 0:03:00]}  Nf6 {[%clk 0:02:59]} 2. e3 {[%clk 0:03:01]}  e6 {[%clk 0:02:59]} 3. Bd3 {[%clk 0:02:53]}  Be7 {[%clk 0:02:58]} 4. f4 {[%clk 0:02:53]}  c5 {[%clk 0:02:55]} 5. Nf3 {[%clk 0:02:54]}  b6 {[%clk 0:02:54]} 6. O-O {[%clk 0:02:53]}  Bb7 {[%clk 0:02:54]} 7. Nbd2 {[%clk 0:02:49]}  cxd4 {[%clk 0:02:48]} 8. exd4 {[%clk 0:02:49]}  O-O {[%clk 0:02:47]} 9. c3 {[%clk 0:02:47]}  d5 {[%clk 0:02:40]} 10. Qe2 {[%clk 0:02:47]}  Nbd7 {[%clk 0:02:35]} 11. Ne5 {[%clk 0:02:47]}  a6 {[%clk 0:02:26]} 12. g4 {[%clk 0:02:43]}  Nxe5 {[%clk 0:02:19]} 13. fxe5 {[%clk 0:02:42]}  Nd7 {[%clk 0:02:19]} 14. g5 {[%clk 0:02:28]}  Bxg5 {[%clk 0:02:11]} 15. Qh5 {[%clk 0:02:28]}  h6 {[%clk 0:02:11]} 16. Nf3 {[%clk 0:02:26]}  Bxc1 {[%clk 0:02:11]} 17. Raxc1 {[%clk 0:02:26]}  f5 {[%clk 0:02:01]} 18. exf6 {[%clk 0:02:07]}  Nxf6 {[%clk 0:02:01]} 19. Qh3 {[%clk 0:02:06]}  Bc8 {[%clk 0:01:58]} 20. Ne5 {[%clk 0:02:05]}  Qe8 {[%clk 0:01:51]} 21. Be2 {[%clk 0:01:53]}  Ra7 {[%clk 0:01:37]} 22. Kh1 {[%clk 0:01:51]}  Ne4 {[%clk 0:01:34]} 23. Qg2 {[%clk 0:01:33]}  g5 {[%clk 0:01:18]} 24. h4 {[%clk 0:01:27]}  Rg7 {[%clk 0:01:18]} 25. h5 {[%clk 0:01:24]}  Rf4 {[%clk 0:01:05]} 26. Ng6 {[%clk 0:01:19]}  Rf6 {[%clk 0:00:44]} 27. Bd3 {[%clk 0:01:16]}  Rgf7 {[%clk 0:00:37]} 28. Bxe4 {[%clk 0:01:11]}  dxe4 {[%clk 0:00:38]} 29. Rxf6 {[%clk 0:01:05]}  Rxf6 {[%clk 0:00:39]} 30. Qxe4 {[%clk 0:01:02]}  Qf7 {[%clk 0:00:37]} 31. Qa8 {[%clk 0:00:41]}  Qb7+ {[%clk 0:00:32]} 32. Qxb7 {[%clk 0:00:38]}  Bxb7+ {[%clk 0:00:32]} 33. Kg1 {[%clk 0:00:37]}  Rf3 {[%clk 0:00:28]} 34. Re1 {[%clk 0:00:35]}  Rg3+ {[%clk 0:00:23]} 35. Kf1 {[%clk 0:00:35]}  Rf3+ {[%clk 0:00:21]} 36. Ke2 {[%clk 0:00:34]}  Rh3 {[%clk 0:00:20]} 37. Kd2 {[%clk 0:00:31]}  Rxh5 {[%clk 0:00:19]} 38. Rxe6 {[%clk 0:00:29]}  Rh2+ {[%clk 0:00:19]} 39. Kd3 {[%clk 0:00:27]}  Bd5 {[%clk 0:00:12]} 40. Re7 {[%clk 0:00:25]}  Bf7 {[%clk 0:00:10]} 41. Ne5 {[%clk 0:00:24]}  Bh5 {[%clk 0:00:10]} 42. d5 {[%clk 0:00:21]}  Be2+ {[%clk 0:00:09]} 43. Kd4 {[%clk 0:00:19]}  Bb5 {[%clk 0:00:08]} 44. d6 {[%clk 0:00:19]}  Rd2+ {[%clk 0:00:08]} 45. Ke4 {[%clk 0:00:17]}  Rxd6 {[%clk 0:00:08]} 46. c4 {[%clk 0:00:17]}  Bc6+ {[%clk 0:00:07]} 47. Kf5 {[%clk 0:00:17]}  Bg2 {[%clk 0:00:06]} 48. b4 {[%clk 0:00:16]}  Bf1 {[%clk 0:00:05]} 49. c5 {[%clk 0:00:16]}  bxc5 {[%clk 0:00:06]} 50. bxc5 {[%clk 0:00:16]}  Rd8 {[%clk 0:00:06]} 51. Kg6 {[%clk 0:00:16]}  Bd3+ {[%clk 0:00:04]} 52. Kf6 {[%clk 0:00:16]}  Bb1 {[%clk 0:00:03]} 53. Rg7+ {[%clk 0:00:15]}  Kf8 {[%clk 0:00:03]} 54. Rf7+ {[%clk 0:00:14]}  Kg8 {[%clk 0:00:04]} 55. Rg7+ {[%clk 0:00:14]}  Kh8 {[%clk 0:00:05]} 56. Nf7# {[%clk 0:00:12]} 1-0


[Site "https://www.chess.com"]

[Event "Titled Tuesday Blitz July 11 Late 2023"]
[White "ArturoCaceres"]
[Black "Jovic, Stanoje"]
[BlackFideId "905020"]
[WhiteElo "2389"]
[BlackElo "2524"]
[Result "0-1"]
[Round "7"]
[TimeControl "180+2"]
[Date "2023.07.11"]
[WhiteClock "0:00:00"]
[BlackClock "0:00:37"]
[Board "81"]

1. e4 {[%clk 0:03:00]}  c6 {[%clk 0:02:59]} 2. Ne2 {[%clk 0:02:58]}  d5 {[%clk 0:02:58]} 3. e5 {[%clk 0:02:58]}  g6 {[%clk 0:02:52]} 4. d4 {[%clk 0:02:57]}  Bg7 {[%clk 0:02:51]} 5. h4 {[%clk 0:02:55]}  c5 {[%clk 0:02:48]} 6. h5 {[%clk 0:02:51]}  cxd4 {[%clk 0:02:46]} 7. f4 {[%clk 0:02:49]}  Nc6 {[%clk 0:02:39]} 8. Nxd4 {[%clk 0:02:48]}  Qb6 {[%clk 0:02:35]} 9. c3 {[%clk 0:02:35]}  Nh6 {[%clk 0:02:31]} 10. Na3 {[%clk 0:02:24]}  Bg4 {[%clk 0:02:26]} 11. Qa4 {[%clk 0:02:17]}  gxh5 {[%clk 0:02:18]} 12. Bb5 {[%clk 0:01:57]}  Rc8 {[%clk 0:02:14]} 13. Be3 {[%clk 0:01:56]}  O-O {[%clk 0:02:10]} 14. Bf2 {[%clk 0:01:16]}  Nxd4 {[%clk 0:02:05]} 15. Bxd4 {[%clk 0:01:15]}  Qg6 {[%clk 0:02:04]} 16. Qxa7 {[%clk 0:01:04]}  Qe4+ {[%clk 0:01:58]} 17. Kf2 {[%clk 0:01:02]}  Qxf4+ {[%clk 0:01:56]} 18. Kg1 {[%clk 0:00:59]}  Bxe5 {[%clk 0:01:56]} 19. Be3 {[%clk 0:00:39]}  Qg3 {[%clk 0:01:38]} 20. Bxh6 {[%clk 0:00:28]}  d4 {[%clk 0:01:27]} 21. Qxb7 {[%clk 0:00:18]}  dxc3 {[%clk 0:01:18]} 22. Nc4 {[%clk 0:00:18]}  cxb2 {[%clk 0:01:15]} 23. Rf1 {[%clk 0:00:03]}  Bd4+ {[%clk 0:01:11]} 24. Be3 {[%clk 0:00:04]}  Bxe3+ {[%clk 0:01:10]} 25. Nxe3 {[%clk 0:00:05]}  Qxe3+ {[%clk 0:01:10]} 26. Kh2 {[%clk 0:00:06]}  Qe5+ {[%clk 0:01:04]} 27. Kg1 {[%clk 0:00:04]}  Rb8 {[%clk 0:01:01]} 28. Qa7 {[%clk 0:00:03]}  Rxb5 {[%clk 0:00:58]} 29. Qa6 {[%clk 0:00:03]}  b1=Q {[%clk 0:00:55]} 30. Qh6 {[%clk 0:00:02]}  Qxf1+ {[%clk 0:00:46]} 31. Kxf1 {[%clk 0:00:02]}  Qd4 {[%clk 0:00:38]} 32. Qg5+ {[%clk 0:00:00]}  Rxg5 {[%clk 0:00:37]} 0-1


[Site "https://www.chess.com"]

[Event "Titled Tuesday Blitz July 11 Late 2023"]
[White "Spichkin, Alexander"]
[Black "Osmak, Yuliia"]
[WhiteFideId "4144074"]
[BlackFideId "14101602"]
[WhiteElo "2366"]
[BlackElo "2518"]
[Result "0-1"]
[Round "7"]
[TimeControl "180+2"]
[Date "2023.07.11"]
[WhiteClock "0:02:05"]
[BlackClock "0:00:27"]
[Board "83"]

1. f4 {[%clk 0:03:00]}  c5 {[%clk 0:02:58]} 2. Nf3 {[%clk 0:03:01]}  Nc6 {[%clk 0:02:58]} 3. d3 {[%clk 0:03:01]}  d5 {[%clk 0:02:57]} 4. e3 {[%clk 0:03:00]}  g6 {[%clk 0:02:53]} 5. Be2 {[%clk 0:03:00]}  Bg7 {[%clk 0:02:54]} 6. O-O {[%clk 0:03:01]}  Nf6 {[%clk 0:02:49]} 7. Kh1 {[%clk 0:03:01]}  O-O {[%clk 0:02:48]} 8. a4 {[%clk 0:03:01]}  Qc7 {[%clk 0:02:43]} 9. Nc3 {[%clk 0:02:59]}  e5 {[%clk 0:02:37]} 10. Nb5 {[%clk 0:02:58]}  Qe7 {[%clk 0:02:32]} 11. fxe5 {[%clk 0:02:58]}  Nxe5 {[%clk 0:02:32]} 12. Nxe5 {[%clk 0:02:58]}  Qxe5 {[%clk 0:02:31]} 13. e4 {[%clk 0:02:59]}  dxe4 {[%clk 0:01:59]} 14. Bf4 {[%clk 0:02:59]}  Qxb2 {[%clk 0:01:59]} 15. Rb1 {[%clk 0:02:58]}  Qa2 {[%clk 0:01:59]} 16. Be5 {[%clk 0:02:58]}  Bf5 {[%clk 0:01:51]} 17. dxe4 {[%clk 0:02:37]}  Nxe4 {[%clk 0:01:46]} 18. Ra1 {[%clk 0:02:36]}  Qe6 {[%clk 0:01:15]} 19. Bxg7 {[%clk 0:02:34]}  Kxg7 {[%clk 0:01:15]} 20. Nc7 {[%clk 0:02:34]}  Qe5 {[%clk 0:01:10]} 21. Nxa8 {[%clk 0:02:33]}  Nc3 {[%clk 0:01:06]} 22. Qe1 {[%clk 0:02:24]}  Nxe2 {[%clk 0:00:59]} 23. Nc7 {[%clk 0:02:23]}  Bxc2 {[%clk 0:00:47]} 24. Nd5 {[%clk 0:02:18]}  Bd3 {[%clk 0:00:35]} 25. Nc3 {[%clk 0:02:08]}  Qxc3 {[%clk 0:00:33]} 26. Rf3 {[%clk 0:02:08]}  Qxe1+ {[%clk 0:00:31]} 27. Rxe1 {[%clk 0:02:08]}  c4 {[%clk 0:00:32]} 28. Rd1 {[%clk 0:02:08]}  f5 {[%clk 0:00:28]} 29. h3 {[%clk 0:02:07]}  Nc3 {[%clk 0:00:27]} 30. Kh2 {[%clk 0:02:05]}  Nxd1 {[%clk 0:00:27]} 0-1


[Site "https://www.chess.com"]